fUST/lending_fUST_20250925
["ID","MTS","AMOUNT","RATE_DAILY","PERIOD"]
[387618018,1758789037800,-480.0,0.00020721,2]
[387618019,1758789037810,-1424.84,0.00020721,2]
[387618020,1758789037820,-480.0,0.00020721,2]
[387618021,1758789037830,-7.24692411,0.00020721,2]
[387618022,1758789037842,-472.75307589,0.00020721,2]
[387618023,1758789037851,-480.0,0.00020721,2]
[387618024,1758789037862,-480.0,0.00020721,2]
[387618025,1758789037871,-480.0,0.00020721,2]
[387618026,1758789037881,-480.0,0.00020721,2]
[387618027,1758789037891,-480.0,0.00020721,2]
[387618028,1758789037900,-742.63,0.00020721,2]
[387618029,1758789037910,-480.0,0.00020721,2]
[387618030,1758789037919,-480.0,0.00020721,2]
[387618031,1758789037929,-480.0,0.00020721,2]
[387618032,1758789037938,-480.0,0.00020721,2]
[387618033,1758789037947,-480.0,0.00020721,2]
[387618034,1758789037956,-480.0,0.00020721,2]
[387618035,1758789037966,-150.0,0.00020797,2]
[387618036,1758789037975,-1000.0,0.00020934,2]
[387618037,1758789037985,-928.69789644,0.00020972,2]
[387618038,1758789037995,-480.0,0.00020994,2]
[387618039,1758789038003,-151.0,0.00020995,2]
[387618040,1758789038012,-480.0,0.00020995,2]
[387618041,1758789038022,-480.0,0.00020995,2]
[387618042,1758789038031,-1424.84,0.00020995,2]
[387618043,1758789038040,-480.0,0.00020995,2]
[387618044,1758789038050,-480.0,0.00020995,2]
[387618045,1758789038060,-480.0,0.00020995,2]
[387618046,1758789038069,-480.0,0.00020995,2]
[387618047,1758789038079,-480.0,0.00020995,2]
[387618048,1758789038088,-480.0,0.00020995,2]
[387618049,1758789038098,-742.63,0.00020995,2]
[387618050,1758789038107,-480.0,0.00020995,2]
[387618051,1758789038117,-480.0,0.00020995,2]
[387618052,1758789038126,-480.0,0.00020995,2]
[387618053,1758789038136,-480.0,0.00020995,2]
[387618054,1758789038145,-480.0,0.00020995,2]
[387618055,1758789038155,-195.915342,0.00021,5]
[387618056,1758789038164,-688.67808718,0.00021,10]
[387618057,1758789038173,-500.0,0.00021056,2]
[387618058,1758789038183,-1500.0,0.00021056,2]
[387618059,1758789038192,-506.92875789,0.00021057,2]
[387618060,1758789038201,-500.0,0.00021068,2]
[387618061,1758789038211,-326.53650875,0.00021068,2]
[387618062,1758789038221,-500.98143617,0.00021207,2]
[387618063,1758789038230,-238.57457338,0.00021207,2]
[387618064,1758789038239,-501.7698393,0.00021207,2]
[387618065,1758789038249,-480.0,0.00021268,2]
[387618066,1758789038258,-198.87602421,0.00021269,2]
[387618067,1758789038267,-480.0,0.00021269,2]
[387618068,1758789038277,-480.0,0.00021269,2]
[387618069,1758789038287,-1424.84,0.00021269,2]
[387618070,1758789038296,-480.0,0.00021269,2]
[387618071,1758789038306,-480.0,0.00021269,2]
[387618072,1758789038316,-480.0,0.00021269,2]
[387618073,1758789038413,-480.0,0.00021269,2]
[387618074,1758789038427,-521.83599742,0.00021269,2]
[387618075,1758789038436,-480.0,0.00021269,2]
[387618076,1758789038446,-742.63,0.00021269,2]
[387618077,1758789038457,-480.0,0.00021269,2]
[387618078,1758789038467,-480.0,0.00021269,2]
[387618079,1758789038477,-480.0,0.00021269,2]
[387618080,1758789038486,-480.0,0.00021269,2]
[387618081,1758789038496,-480.0,0.00021269,2]
[387618082,1758789038506,-1284.80352331,0.00021482,2]
[387618083,1758789038517,-480.0,0.00021542,2]
[387618084,1758789038526,-480.0,0.00021543,2]
[387618085,1758789038536,-480.0,0.00021543,2]
[387618086,1758789038545,-1424.84,0.00021543,2]
[387618087,1758789038555,-480.0,0.00021543,2]
[387618088,1758789038564,-565.2975381,0.00021543,2]
[387618089,1758789038574,-480.0,0.00021543,2]
[387618090,1758789038584,-480.0,0.00021543,2]
[387618091,1758789038593,-480.0,0.00021543,2]
[387618092,1758789038603,-742.63,0.00021543,2]
[387618093,1758789038613,-480.0,0.00021543,2]
[387618094,1758789038622,-480.0,0.00021543,2]
[387618095,1758789038632,-480.0,0.00021543,2]
[387618096,1758789038641,-453.15594172,0.00021543,2]
[387618097,1758789038651,-480.0,0.00021543,2]
[387618098,1758789038661,-490.54451475,0.00021592,2]
[387618099,1758789038670,-501.7140521,0.00021671,2]
[387618100,1758789038680,-489.84047527,0.00021717,2]
[387618101,1758789038689,-173.7,0.00021771,2]
[387618102,1758789038699,-160.0,0.00021806,2]
[387618103,1758789038708,-473.28,0.00021816,2]
[387618104,1758789038717,-480.0,0.00021817,2]
[387618105,1758789038727,-480.0,0.00021817,2]
[387618106,1758789038736,-1424.84,0.00021817,2]
[387618107,1758789038746,-480.0,0.00021817,2]
[387618108,1758789038755,-480.0,0.00021817,2]
[387618109,1758789038765,-480.0,0.00021817,2]
[387618110,1758789038774,-597.52475481,0.00021817,2]
[387618111,1758789038783,-742.63,0.00021817,2]
[387618112,1758789038794,-480.0,0.00021817,2]
[387618113,1758789038803,-480.0,0.00021817,2]
[387618114,1758789038812,-480.0,0.00021817,2]
[387618115,1758789038821,-480.0,0.00021817,2]
[387618116,1758789038831,-1303.37914098,0.000219,2]
[387618117,1758789038840,-152.58499236,0.00021918,2]
[387618118,1758789038850,-160.0,0.00021932,2]
[387618119,1758789038860,-160.0,0.00021932,2]
[387618120,1758789038870,-160.0,0.00021933,2]
[387618121,1758789038880,-160.0,0.00021939,2]
[387618122,1758789038891,-233.66602051,0.00021939,2]
[387618123,1758789038900,-500.0,0.00021973,2]
[387618124,1758789038910,-406.79269329,0.00021973,2]
[387618125,1758789038919,-500.0,0.00021973,2]
[387618126,1758789038929,-500.0,0.00021973,2]
[387618127,1758789038940,-500.0,0.00021973,2]
[387618128,1758789038949,-268.49193596,0.00021989,2]
[387618129,1758789038959,-212.17918717,0.00021989,2]
[387618130,1758789038968,-500.0,0.00021989,2]
[387618131,1758789038977,-500.0,0.00021989,2]
[387618132,1758789038988,-472.96722933,0.00021989,2]
[387618133,1758789038998,-500.0,0.00021989,2]
[387618134,1758789039007,-500.0,0.00021989,2]
[387618135,1758789039016,-500.0,0.00021989,2]
[387618136,1758789039026,-500.0,0.00021989,2]
[387618137,1758789039035,-500.0,0.00021989,2]
[387618138,1758789039045,-500.0,0.00021989,2]
[387618139,1758789039055,-500.0,0.00021989,2]
[387618140,1758789039064,-100000.0,0.0002199,2]
[387618141,1758789039073,-944.2,0.00022,2]
[387618142,1758789039083,-928.69789644,0.00022044,2]
[387618143,1758789039092,-183.42,0.00022091,2]
[387618144,1758789039101,-480.0,0.00022091,2]
[387618145,1758789039111,-1424.84,0.00022091,2]
[387618146,1758789039121,-480.0,0.00022091,2]
[387618147,1758789039130,-480.0,0.00022091,2]
[387618148,1758789039140,-480.0,0.00022091,2]
[387618149,1758789039150,-742.63,0.00022091,2]
[387618150,1758789039160,-480.0,0.00022091,2]
[387618151,1758789039169,-480.0,0.00022091,2]
[387618152,1758789039178,-480.0,0.00022091,2]
[387618153,1758789039189,-480.0,0.00022091,2]
[387618154,1758789039198,-254.960653,0.00022269,2]
[387618155,1758789039208,-414.03812162,0.00022354,2]
[387618156,1758789039217,-480.0,0.00022365,2]
[387618157,1758789039227,-1424.84,0.00022365,2]
[387618158,1758789039237,-480.0,0.00022365,2]
[387618159,1758789039247,-480.0,0.00022365,2]
[387618160,1758789039257,-480.0,0.00022365,2]
[387618161,1758789039266,-742.63,0.00022365,2]
[387618162,1758789039275,-480.0,0.00022365,2]
[387618163,1758789039285,-480.0,0.00022365,2]
[387618164,1758789039295,-480.0,0.00022365,2]
[387618165,1758789039305,-480.0,0.00022365,2]
[387618166,1758789039314,-500.0,0.00022494,2]
[387618167,1758789039323,-151.0,0.000225,10]
[387618168,1758789039333,-504.83976007,0.00022521,2]
[387618169,1758789039341,-1000.0,0.00022521,2]
[387618170,1758789039351,-1000.0,0.00022521,2]
[387618171,1758789039360,-480.0,0.00022639,2]
[387618172,1758789039369,-1424.84,0.00022639,2]
[387618173,1758789039380,-480.0,0.00022639,2]
[387618174,1758789039389,-480.0,0.00022639,2]
[387618175,1758789039398,-480.0,0.00022639,2]
[387618176,1758789039407,-742.63,0.00022639,2]
[387618177,1758789039417,-480.0,0.00022639,2]
[387618178,1758789039426,-480.0,0.00022639,2]
[387618179,1758789039435,-480.0,0.00022639,2]
[387618180,1758789039446,-480.0,0.00022639,2]
[387618182,1758789039455,-302.57643837,0.0002265,8]
[387618184,1758789039464,-150.0,0.00022688,2]
[387618187,1758789039474,-500.0,0.00022764,2]
[387618189,1758789039483,-500.0,0.00022772,2]
[387618191,1758789039492,-500.0,0.00022884,2]
[387618193,1758789039501,-480.0,0.00022913,2]
[387618195,1758789039511,-1424.84,0.00022913,2]
[387618197,1758789039520,-525.75815755,0.00022913,2]
[387618199,1758789039530,-480.0,0.00022913,2]
[387618201,1758789039540,-480.0,0.00022913,2]
[387618203,1758789039549,-742.63,0.00022913,2]
[387618205,1758789039558,-480.0,0.00022913,2]
[387618207,1758789039568,-480.0,0.00022913,2]
[387618209,1758789039577,-480.0,0.00022913,2]
[387618210,1758789039587,-480.0,0.00022913,2]
[387618212,1758789039597,-156377.05460505,0.00023,2]
[387618214,1758789039606,-2803.88557255,0.00023,2]
[387618216,1758789039616,-418.60072527,0.0002304,2]
[387618218,1758789039626,-1000.0,0.00023052,2]
[387618220,1758789039635,-1000.0,0.00023052,2]
[387618222,1758789039645,-1000.0,0.00023052,2]
[387618224,1758789039655,-1000.0,0.00023052,2]
[387618226,1758789039664,-1000.0,0.00023052,2]
[387618228,1758789039674,-788.45181069,0.00023052,2]
[387618230,1758789039684,-156.92023839,0.00023052,2]
[387618232,1758789039693,-500.0,0.00023052,2]
[387618235,1758789039703,-500.0,0.00023052,2]
[387618237,1758789039713,-350.0,0.00023052,2]
[387618239,1758789039723,-500.0,0.00023052,2]
[387618241,1758789039732,-500.0,0.00023052,2]
[387618243,1758789039741,-500.0,0.00023052,2]
[387618245,1758789039751,-500.0,0.00023052,2]
[387618247,1758789039760,-500.0,0.00023052,2]
[387618249,1758789039770,-500.0,0.00023052,2]
[387618251,1758789039779,-500.0,0.00023052,2]
[387618253,1758789039789,-500.0,0.00023052,2]
[387618255,1758789039799,-500.0,0.00023052,2]
[387618257,1758789039809,-318.9803333,0.00023062,2]
[387618259,1758789039819,-1500.0,0.00023068,2]
[387618261,1758789039828,-1500.0,0.00023068,2]
[387618263,1758789039837,-500.0,0.00023101,2]
[387618265,1758789039846,-928.69789644,0.00023116,2]
[387618267,1758789039857,-198.57071631,0.00023187,2]
[387618269,1758789039867,-1424.84,0.00023187,2]
[387618271,1758789039877,-480.0,0.00023187,2]
[387618273,1758789039886,-480.0,0.00023187,2]
[387618275,1758789039896,-742.63,0.00023187,2]
[387618277,1758789039905,-480.0,0.00023187,2]
[387618279,1758789039914,-480.0,0.00023187,2]
[387618281,1758789039924,-480.0,0.00023187,2]
[387618283,1758789039934,-480.0,0.00023187,2]
[387618285,1758789039944,-574.36899308,0.00023282,2]
[387618287,1758789039953,-482.11086438,0.00023287,2]
[387618289,1758789039962,-767.44,0.00023287,2]
[387618291,1758789039971,-318.9803333,0.0002334,2]
[387618293,1758789039981,-500.0,0.00023413,2]
[387618295,1758789039990,-173.7,0.00023428,4]
[387618297,1758789040000,-1424.84,0.00023461,2]
[387618299,1758789040009,-480.0,0.00023461,2]
[387618301,1758789040019,-480.0,0.00023461,2]
[387618303,1758789040028,-742.63,0.00023461,2]
[387618305,1758789040038,-480.0,0.00023461,2]
[387618307,1758789040047,-480.0,0.00023461,2]
[387618309,1758789040057,-480.0,0.00023461,2]
[387618311,1758789040067,-480.0,0.00023461,2]
[387618313,1758789040076,-500.0,0.00023575,2]
[387618315,1758789040085,-2000.0,0.00023616,2]
[387618317,1758789040095,-318.9803333,0.00023617,7]
[387618319,1758789040104,-318.9803333,0.00023617,7]
[387618321,1758789040113,-3685.76385583,0.000237,14]
[387618323,1758789040123,-500.0,0.0002372,2]
[387618325,1758789040132,-1158.0534116,0.00023728,2]
[387618327,1758789040141,-1424.84,0.00023735,2]
[387618329,1758789040150,-480.0,0.00023735,2]
[387618331,1758789040160,-480.0,0.00023735,2]
[387618333,1758789040169,-742.63,0.00023735,2]
[387618335,1758789040178,-480.0,0.00023735,2]
[387618337,1758789040187,-480.0,0.00023735,2]
[387618339,1758789040197,-480.0,0.00023735,2]
[387618341,1758789040207,-480.0,0.00023735,2]
[387618344,1758789040217,-318.9803333,0.00023895,7]
[387618346,1758789040226,-661.44,0.00024,14]
[387618348,1758789040236,-20235.0,0.00024,9]
[387618350,1758789040244,-1424.84,0.00024009,2]
[387618351,1758789040255,-480.0,0.00024009,2]
[387618353,1758789040265,-480.0,0.00024009,2]
[387618356,1758789040276,-742.63,0.00024009,2]
[387618358,1758789040285,-480.0,0.00024009,2]
[387618360,1758789040294,-480.0,0.00024009,2]
[387618362,1758789040303,-182.81,0.00024009,2]
[387618364,1758789040315,-480.0,0.00024009,2]
[387618366,1758789040324,-173.51998777,0.00024098,6]
[387618368,1758789040334,-1013.166,0.00024098,6]
[387618370,1758789040343,-500.0,0.00024139,2]
[387618372,1758789040352,-2052.9014586,0.00024146,2]
[387618374,1758789040362,-2500.0,0.00024164,2]
[387618376,1758789040371,-318.9803333,0.00024172,14]
[387618378,1758789040384,-318.9803333,0.00024172,14]
[387618380,1758789040393,-151.840992,0.00024172,7]
[387618382,1758789040403,-151.0,0.00024172,7]
[387618384,1758789040414,-158.885199,0.00024172,7]
[387618386,1758789040424,-158.885199,0.00024172,7]
[387618388,1758789040433,-151.0,0.00024172,7]
[387618390,1758789040442,-158.885199,0.00024172,7]
[387618392,1758789040451,-151.0,0.00024172,7]
[387618394,1758789040461,-151.0,0.00024172,7]
[387618396,1758789040470,-158.885199,0.00024172,7]
[387618398,1758789040480,-151.0,0.00024172,7]
[387618400,1758789040489,-151.0,0.00024172,7]
[387618402,1758789040498,-151.0,0.00024172,7]
[387618404,1758789040508,-151.0,0.00024172,7]
[387618406,1758789040517,-505.094748,0.00024172,7]
[387618408,1758789040527,-505.094748,0.00024172,7]
[387618410,1758789040536,-151.0,0.00024172,7]
[387618412,1758789040545,-505.094748,0.00024172,7]
[387618414,1758789040554,-505.094748,0.00024172,7]
[387618416,1758789040563,-928.69789644,0.00024187,2]
[387618418,1758789040572,-151.0,0.000242,10]
[387618420,1758789040582,-505.61204843,0.00024254,2]
[387618422,1758789040591,-1424.84,0.00024283,2]
[387618424,1758789040600,-480.0,0.00024283,2]
[387618426,1758789040609,-480.0,0.00024283,2]
[387618428,1758789040618,-742.63,0.00024283,2]
[387618430,1758789040627,-486.5,0.00024283,2]
[387618432,1758789040637,-565.49459212,0.00024283,2]
[387618434,1758789040647,-480.0,0.00024283,2]
[387618436,1758789040656,-944.2,0.000243,2]
[387618438,1758789040666,-216.87999059,0.00024329,12]
[387618440,1758789040675,-300.0,0.000244,2]
[387618443,1758789040684,-1424.84,0.00024557,2]
[387618445,1758789040695,-480.0,0.00024557,2]
[387618447,1758789040704,-742.63,0.00024557,2]
[387618449,1758789040714,-480.0,0.00024557,2]
[387618451,1758789040724,-152.07,0.00024604,2]
[387618453,1758789040733,-1303.37914096,0.0002462,2]
[387618455,1758789040743,-9971.68120309,0.0002465,2]
[387618457,1758789040752,-151.0,0.00024658,2]
[387618459,1758789040761,-517.18989171,0.00024712,2]
[387618461,1758789040771,-1424.84,0.00024831,2]
[387618463,1758789040780,-520.59,0.00024831,2]
[387618465,1758789040790,-742.63,0.00024831,2]
[387618467,1758789040800,-480.0,0.00024831,2]
[387618469,1758789040809,-500.0,0.00024873,2]
[387618471,1758789040819,-504.46953015,0.00024873,2]
[387618473,1758789040828,-150.0,0.00024873,2]
[387618475,1758789040837,-151.0,0.000249,7]
[387618477,1758789040847,-151.0,0.000249,7]
[387618479,1758789040856,-155.269055,0.000249,7]
[387618490,1758789040947,-153.074967,0.000249,7]
[387618492,1758789040957,-151.0,0.000249,7]
[387618494,1758789040967,-152.570141,0.000249,7]
[387618496,1758789040976,-151.0,0.000249,7]
[387618498,1758789040986,-248.981967,0.000249,7]
[387618500,1758789040995,-151.0,0.000249,7]
[387618502,1758789041004,-151.0,0.000249,7]
[387618504,1758789041013,-151.0,0.000249,7]
[387618506,1758789041023,-151.0,0.000249,7]
[387618508,1758789041032,-151.0,0.000249,7]
[387618510,1758789041041,-157.469979,0.000249,7]
[387618512,1758789041051,-151.0,0.000249,7]
[387618515,1758789041061,-154.967069,0.000249,7]
[387618517,1758789041071,-157.469979,0.000249,7]
[387618519,1758789041080,-157.469979,0.000249,7]
[387618521,1758789041089,-157.469979,0.000249,7]
[387618523,1758789041099,-151.0,0.000249,7]
[387618525,1758789041109,-151.0,0.000249,7]
[387618527,1758789041118,-151.0,0.000249,7]
[387618529,1758789041127,-151.0,0.000249,7]
[387618531,1758789041136,-151.0,0.000249,7]
[387618533,1758789041145,-159.508238,0.000249,7]
[387618535,1758789041154,-151.0,0.000249,7]
[387618537,1758789041164,-151.0,0.000249,7]
[387618539,1758789041173,-151.0,0.000249,7]
[387618541,1758789041183,-156.313659,0.000249,7]
[387618543,1758789041192,-151.0,0.000249,7]
[387618545,1758789041202,-157.193213,0.000249,7]
[387618547,1758789041212,-199.516749,0.000249,7]
[387618549,1758789041222,-151.0,0.000249,7]
[387618551,1758789041232,-166.648178,0.000249,7]
[387618553,1758789041242,-317.938597,0.000249,7]
[387618555,1758789041252,-317.938597,0.000249,7]
[387618557,1758789041262,-317.938597,0.000249,7]
[387618559,1758789041272,-317.938597,0.000249,7]
[387618561,1758789041282,-151.0,0.000249,7]
[387618563,1758789041292,-151.0,0.000249,7]
[387618565,1758789041302,-151.0,0.000249,7]
[387618567,1758789041311,-151.0,0.000249,7]
[387618569,1758789041321,-151.0,0.000249,7]
[387618571,1758789041330,-151.0,0.000249,7]
[387618573,1758789041339,-151.20011,0.000249,7]
[387618575,1758789041350,-151.0,0.000249,7]
[387618577,1758789041362,-151.0,0.000249,7]
[387618579,1758789041371,-435761.40489,0.000249,2]
[387618581,1758789041383,-151.0,0.000249,7]
[387618583,1758789041393,-158.540259,0.000249,7]
[387618585,1758789041403,-158.885199,0.000249,7]
[387618587,1758789041412,-158.885199,0.000249,7]
[387618589,1758789041422,-151.0,0.000249,7]
[387618591,1758789041431,-158.885199,0.000249,7]
[387618593,1758789041441,-151.0,0.000249,7]
[387618595,1758789041450,-151.0,0.000249,7]
[387618597,1758789041459,-158.885199,0.000249,7]
[387618599,1758789041469,-151.0,0.000249,7]
[387618601,1758789041478,-151.0,0.000249,7]
[387618603,1758789041487,-151.0,0.000249,7]
[387618605,1758789041497,-152.584044,0.000249,7]
[387618607,1758789041506,-505.094748,0.000249,7]
[387618609,1758789041515,-505.094748,0.000249,7]
[387618611,1758789041524,-151.0,0.000249,7]
[387618613,1758789041533,-505.094748,0.000249,7]
[387618615,1758789041543,-505.094748,0.000249,7]
[387618617,1758789041552,-151.0,0.000249,7]
[387618619,1758789041561,-152.174128,0.000249,7]
[387618621,1758789041571,-151.0,0.000249,7]
[387618623,1758789041581,-151.0,0.000249,7]
[387618625,1758789041591,-249.059658,0.000249,7]
[387618628,1758789041600,-249.059658,0.000249,7]
[387618629,1758789041611,-249.059658,0.000249,7]
[387618632,1758789041620,-249.059658,0.000249,7]
[387618633,1758789041630,-151.0,0.000249,7]
[387618636,1758789041640,-151.0,0.000249,7]
[387618638,1758789041650,-151.0,0.000249,7]
[387618640,1758789041659,-151.0,0.000249,7]
[387618641,1758789041670,-151.0,0.000249,7]
[387618643,1758789041679,-151.0,0.000249,7]
[387618645,1758789041688,-151.0,0.000249,7]
[387618647,1758789041698,-151.0,0.000249,7]
[387618649,1758789041707,-151.0,0.000249,7]
[387618651,1758789041717,-151.0,0.000249,7]
[387618653,1758789041726,-151.0,0.000249,7]
[387618655,1758789041736,-2368.47532762,0.00024907,2]
[387618657,1758789041745,-198.0,0.00024932,2]
[387618659,1758789041755,-5055.27774442,0.00025,30]
[387618661,1758789041764,-173.7,0.00025085,5]
[387618663,1758789041774,-1424.84,0.00025105,2]
[387618665,1758789041784,-742.63,0.00025105,2]
[387618668,1758789041794,-480.0,0.00025105,2]
[387618670,1758789041803,-767.44,0.00025205,4]
[387618672,1758789041813,-928.69789644,0.00025259,3]
[387618674,1758789041822,-1424.84,0.00025379,2]
[387618676,1758789041832,-742.63,0.00025379,2]
[387618678,1758789041841,-480.0,0.00025379,2]
[387618680,1758789041851,-300.0,0.00025421,2]
[387618682,1758789041861,-403.2460528,0.00025464,2]
[387618684,1758789041871,-154.45059935,0.00025562,2]
[387618686,1758789041880,-617.18459502,0.00025562,2]
[387618688,1758789041890,-1424.88594511,0.00025653,2]
[387618690,1758789041899,-742.67838111,0.00025653,2]
[387618692,1758789041909,-296.91283583,0.00025653,2]
[387618694,1758789041918,-254.960653,0.00025694,2]
[387618696,1758789041927,-168.0,0.00025724,2]
[387618698,1758789041936,-151.0,0.000258,13]
[387618700,1758789041946,-179.64071856,0.00025885,2]
[387618702,1758789041955,-306.2739526,0.00025968,2]
[387618704,1758789041964,-4979.45748792,0.00026,10]
[387618706,1758789041974,-106512.711317,0.00026,30]
[387618708,1758789041983,-168.0,0.00026038,2]
[387618710,1758789041993,-168.0,0.00026207,2]
[387618712,1758789042002,-2467.39927636,0.00026218,2]
[387618714,1758789042011,-1455.1202233,0.00026252,2]
[387618716,1758789042020,-928.69789644,0.00026331,5]
[387618718,1758789042029,-944.2,0.000264,2]
[387618720,1758789042039,-202.76,0.00026497,2]
[387618722,1758789042054,-173.7,0.00026743,6]
[387618725,1758789042072,-1678.62107569,0.00027052,2]
[387618727,1758789042082,-767.44,0.00027123,6]
[387618729,1758789042091,-168.0,0.00027129,2]
[387618731,1758789042100,-800.0,0.00027141,2]
[387618732,1758789042110,-168.0,0.00027172,2]
[387618734,1758789042119,-2947.87783476,0.0002734,2]
[387618737,1758789042129,-1303.37914096,0.0002734,2]
[387618739,1758789042139,-12956.27760681,0.00027353,2]
[387618741,1758789042148,-836.49770281,0.00027366,2]
[387618743,1758789042157,-480.0,0.00027397,2]
[387618745,1758789042167,-150.0,0.00027397,5]
[387618747,1758789042176,-1002.575568,0.000274,2]
[387618749,1758789042186,-928.69789644,0.00027403,7]
[387618751,1758789042195,-211013.48425612,0.0002744,2]
[387618758,1758789042250,484.13091357,0.00019351,2]
[387618760,1758789042267,-480.0,0.00020721,2]
[387618762,1758789042277,-1339.05417158,0.0002744,2]
[387618768,1758789042322,480.0,0.00019351,2]
[387618772,1758789042346,-480.0,0.00020995,2]
[387618774,1758789042356,-201.98238661,0.00021269,2]
[387618776,1758789042366,-3512.23,0.0002198,10]
[387618778,1758789042376,-151.0,0.000249,7]
[387618780,1758789042387,-6845.78361339,0.0002744,2]
[387618782,1758789042398,-4880.99999994,0.0002744,2]
[387618787,1758789042433,300.0,0.000147,2]
[387618791,1758789042465,480.0,0.00019351,2]
[387618893,1758789043582,-422.9069264,0.000229,2]
[387618895,1758789043591,-151.0,0.000249,7]
[387618897,1758789043601,-26667.80188429,0.0002744,2]
[387618901,1758789043639,-22645.63631801,0.0002744,2]
[387618908,1758789043696,-24732.98748964,0.0002744,2]
[387618913,1758789043731,300.0,0.000194,2]
[387619103,1758789045815,-351.59094771,0.0002401,2]
[387619107,1758789045845,421.34813249,0.00019351,2]
[387619261,1758789047366,300.0,0.000194,2]
[387619280,1758789047607,484.13091357,0.00019351,2]
[387619790,1758789052574,300.0,0.000137,2]
[387619809,1758789063235,300.0,0.000137,2]
[387619810,1758789075651,300.0,0.000137,2]
[387619811,1758789087721,300.0,0.000137,2]
[387619813,1758789093055,300.0,0.000137,2]
[387619814,1758789095508,300.0,0.000147,2]
[387619816,1758789103860,300.0,0.000137,2]
[387619817,1758789107108,300.0,0.000137,2]
[387619819,1758789148995,300.0,0.000137,2]
[387619820,1758789160587,300.0,0.000137,2]
[387619821,1758789173800,300.0,0.000137,2]
[387619823,1758789213144,300.0,0.000137,2]
[387619824,1758789225722,300.0,0.000137,2]
[387619826,1758789237269,300.0,0.000137,2]
[387619828,1758789269081,300.0,0.000137,2]
[387619829,1758789279555,253.4634187,0.00018432,2]
[387619830,1758789298955,260.28729255,0.00019078,2]
[387619831,1758789305174,204.56164891,0.00018978,2]
[387619832,1758789330274,254.49784699,0.000184,2]
[387619833,1758789350102,-185.65890008,0.00019251,2]
[387619834,1758789350133,-258.47603764,0.000193,2]
[387619835,1758789350173,-980.0,0.0001935,2]
[387619836,1758789350211,-300.0,0.0001935,2]
[387619837,1758789350235,-185.65890008,0.0001935,2]
[387619838,1758789350250,-258.47603764,0.0001935,2]
[387619839,1758789350265,-755.86506228,0.0001935,2]
[387619840,1758789350276,-224.13493772,0.0001935,2]
[387619841,1758789350291,-255.86506228,0.0001935,2]
[387619842,1758789350303,-44.13493772,0.0001935,2]
[387619843,1758789350318,-51.73012456,0.0001935,2]
[387619844,1758789356185,250.0,0.00018174,2]
[387619847,1758789441127,400000.0,0.00029348,60]
[387619848,1758789479988,199.35,0.00015984,2]
[387619849,1758789480291,199.35,0.00015984,2]
[387619850,1758789510317,666.0,0.00018351,2]
[387619852,1758789538135,7965.96321155,0.00019078,2]
[387619853,1758789538157,10000.01,0.00019078,2]